[Event "Fagernes GM Open Autumn 2024"]
[Site "Fagernes"]
[Date "2024.10.09"]
[Round "5.23"]
[White "Welling, Gerard"]
[Black "Gasland, Lukas Dominik"]
[Result "1/2-1/2"]
[ECO "A47"]
[WhiteElo "2206"]
[BlackElo "1905"]
[Annotator "RC"]
[PlyCount "150"]
[EventDate "2024.10.03"]
[EventType "swiss"]
[EventCountry "NOR"]
[SourceTitle "playchess.com"]
[Source "ChessBase"]
[SourceQuality "1"]
[TimeControl "40/6000:2400+30"]

1. d4 {[%emt 0:00:00]} Nf6 {[%emt 0:00:00]} 2. Nf3 {[%emt 0:00:00]} e6 {[%emt 0:00:00]} 3. e3 {[%emt 0:00:00]} d5 {[%emt 0:00:31]} 4. Bd3 {[%emt 0:00:00]} c5 {[%emt 0:01:53]} 5. c3 {[%emt 0:00:00]} Be7 {[%emt 0:01:43]} 6. O-O {[%emt 0:00:00]} O-O {[%emt 0:00:00]} 7. Nbd2 {[%emt 0:00:15]} b6 {[%emt 0:05:31]} 8. Qe2 {[%emt 0:10:22]} Bb7 {[%emt 0:04:42]} 9. Ne5 {[%emt 0:00:16]} Nbd7 {[%emt 0:03:17]} 10. f4 {[%emt 0:04:18]} Ne4 {[%emt 0:06:44]} 11. Ndf3 {[%emt 0:04:53]} f5 {[%emt 0:05:48]} 12. g4 {[%emt 0:03:46]} Nxe5 {[%emt 0:05:55]} 13. Nxe5 {[%emt 0:00:22]} Bd6 {[%emt 0:02:52]} 14. gxf5 {[%emt 0:00:00]} exf5 {[%emt 0:00:28]} 15. Bd2 {[%emt 0:06:07]} Rc8 {[%emt 0:06:57]} 16. Kh1 {[%emt 0:12:14]} Rf6 {[%emt 0:04:11]} 17. Rg1 {[%emt 0:01:01]} Rh6 {[%emt 0:00:44]} 18. Bxe4 {[%emt 0:10:28]} fxe4 {[%emt 0:03:46]} 19. Ng4 {[%emt 0:00:36]} Rg6 {[%emt 0:08:11]} 20. f5 {[%emt 0:02:14]} Rg5 {[%emt 0:00:25]} 21. h4 {[%emt 0:06:13]} Rh5 {[%emt 0:04:45]} 22. Nf6+ {[%emt 0:00:00]} Qxf6 {[%emt 0:00:00]} 23. Qxh5 {[%emt 0:00:00]} cxd4 {[%emt 0:00:33]} 24. cxd4 {[%emt 0:04:53]} Rc2 {[%emt 0:05:47]} 25. Rg2 {[%emt 0:00:00]} Rxb2 {[%emt 0:00:25]} 26. Rag1 {[%emt 0:00:04]} Bf8 {[%emt 0:00:00]} 27. Be1 {[%emt 0:02:26]} Rxg2 {[%emt 0:02:48]} 28. Rxg2 {[%emt 0:00:00]} Bc8 {[%emt 0:00:00]} 29. Qg5 {[%emt 0:05:56]} Qxg5 {[%emt 0:03:49]} 30. hxg5 {[%emt 0:00:23]} Bxf5 {[%emt 0:00:00]} 31. Bg3 {[%emt 0:00:00]} Be7 {[%emt 0:00:45]} 32. Bf4 {[%emt 0:00:00]} Kf7 {[%emt 0:00:02]} 33. Rc2 {[%emt 0:00:00]} Bd8 {[%emt 0:00:09]} 34. Rc6 {[%emt 0:03:32]} Ke7 {[%emt 0:01:15]} 35. Kg2 {[%emt 0:02:44]} Bd7 {[%emt 0:00:15]} 36. Rc1 {[%emt 0:06:13]} Kf7 {[%emt 0:01:31]} 37. Kf2 {[%emt 0:00:00]} Kg6 {[%emt 0:01:42]} 38. Be5 {[%emt 0:04:10]} Kxg5 {[%emt 0:03:10]} 39. Bxg7 {[%emt 0:00:40]} h5 {[%emt 0:00:00]} 40. Be5 {[%emt 0:00:06]} h4 {[%emt 0:03:07]} 41. Bc7 {[%emt 0:41:13]} Bf6 {[%emt 0:42:59]} 42. Bf4+ {[%emt 0:00:29]} Kg4 {[%emt 0:00:36]} 43. Rc7 {[%emt 0:01:41]} Bb5 {[%emt 0:01:20]} 44. Be5 {[%emt 0:02:02]} Bxe5 {[%emt 0:00:00]} 45. dxe5 {[%emt 0:00:00]} Kf5 {[%emt 0:00:00]} 46. Rxa7 {[%emt 0:00:00]} Kxe5 {[%emt 0:00:00]} 47. Rh7 {[%emt 0:00:00]} Bc4 {[%emt 0:00:00]} 48. a3 {[%emt 0:00:00]} Kd6 {[%emt 0:00:00]} 49. Rxh4 {[%emt 0:00:00]} Kc5 {[%emt 0:00:00]} 50. Rh8 {[%emt 0:00:00]} Kb5 {[%emt 0:00:00]} 51. Ra8 {[%emt 0:00:00]} Bb3 {[%emt 0:00:00]} 52. Ke2 {[%emt 0:00:00]} Ba2 {[%emt 0:00:00]} 53. Kd2 {[%emt 0:00:00]} Kc5 {[%emt 0:00:00]} 54. Kc3 {[%emt 0:00:00]} Kc6 {[%emt 0:00:00]} 55. Kd4 {[%emt 0:00:00]} Bc4 {[%emt 0:00:00]} 56. Kc3 {[%emt 0:00:00]} Kb7 {[%emt 0:00:00]} 57. Rh8 {[%emt 0:00:00]} Kc6 {[%emt 0:00:00]} 58. a4 {[%emt 0:00:00]} Ba2 {[%emt 0:00:00]} 59. Rh2 {[%emt 0:00:00]} Bc4 {[%emt 0:00:00]} 60. Kb4 {[%emt 0:00:00]} Kb7 {[%emt 0:00:00]} 61. Rh6 {[%emt 0:00:00]} Kc7 {[%emt 0:00:00]} 62. Kc3 {[%emt 0:00:00]} Kb7 {[%emt 0:00:00]} 63. Rh1 {[%emt 0:00:00]} Ka6 {[%emt 0:00:00]} 64. Kb4 {[%emt 0:00:00]} Ba2 {[%emt 0:00:00]} 65. Ra1 {[%emt 0:00:00]} Bc4 {[%emt 0:00:00]} 66. a5 {[%emt 0:00:00]} bxa5+ {[%emt 0:00:00]} 67. Rxa5+ {[%emt 0:00:00]} Kb6 {[%emt 0:00:00]} 68. Rc5 {[%emt 0:00:00]} Ba2 {[%emt 0:00:00]} 69. Rc2 {[%emt 0:00:00]} Bc4 {[%emt 0:00:00]} 70. Rh2 {[%emt 0:00:00]} Kc6 {[%emt 0:00:00]} 71. Rh6+ {[%emt 0:00:00]} Kd7 {[%emt 0:00:00]} 72. Kc5 {[%emt 0:00:00]} Ke7 {[%emt 0:00:00]} 73. Kd4 {[%emt 0:00:00]} Kd7 {[%emt 0:00:00]} 74. Ke5 {[%emt 0:00:00]} Kc7 {[%emt 0:00:00]} 75. Rd6 {[%emt 0:00:00]} Bb3 {[%emt 0:00:00]} 1/2-1/2

[Event "Fagernes GM Open Autumn 2024"]
[Site "Fagernes"]
[Date "2024.10.09"]
[Round "5.24"]
[White "Southcott-Moyers, Indy"]
[Black "Sian, Shadi"]
[Result "1/2-1/2"]
[ECO "D35"]
[WhiteElo "2143"]
[BlackElo "2182"]
[Annotator "RC"]
[PlyCount "33"]
[EventDate "2024.10.03"]
[EventType "swiss"]
[EventCountry "NOR"]
[SourceTitle "playchess.com"]
[Source "ChessBase"]
[SourceQuality "1"]
[TimeControl "40/6000:2400+30"]

1. d4 {[%emt 0:00:00]} Nf6 {[%emt 0:00:00]} 2. c4 {[%emt 0:00:00]} e6 {[%emt 0:00:00]} 3. Nf3 {[%emt 0:00:00]} d5 {[%emt 0:00:00]} 4. Nc3 {[%emt 0:00:00]} Be7 {[%emt 0:00:00]} 5. cxd5 {[%emt 0:00:00]} exd5 {[%emt 0:00:00]} 6. Bf4 {[%emt 0:00:00]} c6 {[%emt 0:00:00]} 7. h3 {[%emt 0:00:00]} O-O {[%emt 0:00:00]} 8. e3 {[%emt 0:00:00]} Qb6 {[%emt 0:05:16]} 9. Qb3 {[%emt 0:00:00]} Qxb3 {[%emt 0:05:07]} 10. axb3 {[%emt 0:00:00]} Bf5 {[%emt 0:00:27]} 11. g4 {[%emt 0:03:21]} Bg6 {[%emt 0:00:00]} 12. Rc1 {[%emt 0:02:50]} Nbd7 {[%emt 0:13:02]} 13. Nh4 {[%emt 0:05:33]} Be4 {[%emt 0:00:20]} 14. Nxe4 {[%emt 0:13:24]} Nxe4 {[%emt 0:00:00]} 15. Nf3 {[%emt 0:00:00]} Bb4+ {[%emt 0:00:00]} 16. Ke2 {[%emt 0:00:00]} a5 {[%emt 0:04:39]} 17. Bg2 {[%emt 0:02:16]} 1/2-1/2

[Event "Fagernes GM Open Autumn 2024"]
[Site "Fagernes"]
[Date "2024.10.09"]
[Round "5.25"]
[White "Soham Datar"]
[Black "Hetland, Even"]
[Result "1/2-1/2"]
[ECO "A06"]
[WhiteElo "2188"]
[BlackElo "1970"]
[Annotator "RC"]
[PlyCount "181"]
[EventDate "2024.10.03"]
[EventType "swiss"]
[EventCountry "NOR"]
[SourceTitle "playchess.com"]
[Source "ChessBase"]
[SourceQuality "1"]
[TimeControl "40/6000:2400+30"]

1. Nf3 {[%emt 0:00:50]} Nf6 {[%emt 0:00:00]} 2. e3 {[%emt 0:00:00]} c5 {[%emt 0:01:31]} 3. b3 {[%emt 0:00:00]} d5 {[%emt 0:00:22]} 4. Bb2 {[%emt 0:00:00]} e6 {[%emt 0:01:46]} 5. Bb5+ {[%emt 0:03:42]} Bd7 {[%emt 0:01:32]} 6. Be2 {[%emt 0:00:00]} Nc6 {[%emt 0:02:00]} 7. c4 {[%emt 0:01:03]} Be7 {[%emt 0:04:02]} 8. cxd5 {[%emt 0:00:14]} exd5 {[%emt 0:02:57]} 9. O-O {[%emt 0:00:00]} O-O {[%emt 0:00:00]} 10. Nc3 {[%emt 0:00:14]} b6 {[%emt 0:15:17]} 11. d4 {[%emt 0:00:06]} Bg4 {[%emt 0:09:21]} 12. Rc1 {[%emt 0:06:06]} Qd7 {[%emt 0:04:21]} 13. dxc5 {[%emt 0:03:47]} bxc5 {[%emt 0:00:12]} 14. Na4 {[%emt 0:00:00]} Ne4 {[%emt 0:00:00]} 15. Nd2 {[%emt 0:05:29]} Bxe2 {[%emt 0:03:45]} 16. Qxe2 {[%emt 0:00:00]} Nb4 {[%emt 0:00:00]} 17. a3 {[%emt 0:10:30]} Nxd2 {[%emt 0:00:00]} 18. Qxd2 {[%emt 0:00:00]} Na6 {[%emt 0:00:00]} 19. Qe2 {[%emt 0:17:39]} Qe6 {[%emt 0:06:04]} 20. Qd3 {[%emt 0:07:47]} Rfc8 {[%emt 0:09:14]} 21. Rfd1 {[%emt 0:04:35]} c4 {[%emt 0:02:14]} 22. bxc4 {[%emt 0:09:28]} dxc4 {[%emt 0:00:00]} 23. Qd7 {[%emt 0:05:26]} Rab8 {[%emt 0:02:12]} 24. Qxe6 {[%emt 0:00:58]} fxe6 {[%emt 0:00:00]} 25. Rd7 {[%emt 0:01:14]} Bf6 {[%emt 0:06:06]} 26. Bxf6 {[%emt 0:00:00]} gxf6 {[%emt 0:00:00]} 27. Rxa7 {[%emt 0:00:10]} Nc5 {[%emt 0:00:00]} 28. Nxc5 {[%emt 0:07:28]} Rxc5 {[%emt 0:00:00]} 29. Ra4 {[%emt 0:07:38]} c3 {[%emt 0:03:12]} 30. Kf1 {[%emt 0:00:00]} Rb2 {[%emt 0:04:50]} 31. Rb4 {[%emt 0:00:00]} Kf7 {[%emt 0:00:51]} 32. Rxc3 {[%emt 0:00:12]} Rxc3 {[%emt 0:01:01]} 33. Rxb2 {[%emt 0:00:00]} Rxa3 {[%emt 0:00:00]} 34. Ke2 {[%emt 0:00:00]} Ra4 {[%emt 0:00:00]} 35. Kf3 {[%emt 0:00:00]} Rc4 {[%emt 0:00:24]} 36. Rb7+ {[%emt 0:00:00]} Kg6 {[%emt 0:00:00]} 37. Re7 {[%emt 0:00:00]} e5 {[%emt 0:00:00]} 38. Re8 {[%emt 0:00:00]} Kf7 {[%emt 0:00:01]} 39. Rh8 {[%emt 0:00:00]} Kg7 {[%emt 0:00:00]} 40. Ra8 {[%emt 0:00:00]} Rb4 {[%emt 0:00:00]} 41. Kg3 {[%emt 0:43:30]} Rc4 {[%emt 0:41:01]} 42. f3 {[%emt 0:01:05]} Rc3 {[%emt 0:01:35]} 43. e4 {[%emt 0:00:06]} Rc2 {[%emt 0:00:03]} 44. Ra1 {[%emt 0:01:35]} Rb2 {[%emt 0:00:14]} 45. Rf1 {[%emt 0:00:05]} Kg6 {[%emt 0:01:09]} 46. Rf2 {[%emt 0:00:19]} Rb3 {[%emt 0:00:02]} 47. Kh4 {[%emt 0:00:54]} Ra3 {[%emt 0:00:55]} 48. Kg4 {[%emt 0:01:02]} Ra4 {[%emt 0:00:57]} 49. Kh3 {[%emt 0:00:18]} Ra3 {[%emt 0:00:33]} 50. g4 {[%emt 0:01:07]} Kg5 {[%emt 0:01:45]} 51. Kg3 {[%emt 0:00:16]} h5 {[%emt 0:01:57]} 52. h4+ {[%emt 0:00:05]} Kg6 {[%emt 0:00:11]} 53. Rb2 {[%emt 0:01:23]} Ra1 {[%emt 0:00:47]} 54. g5 {[%emt 0:00:00]} fxg5 {[%emt 0:00:00]} 55. Rb6+ {[%emt 0:00:00]} Kf7 {[%emt 0:00:00]} 56. hxg5 {[%emt 0:00:00]} Rg1+ {[%emt 0:00:00]} 57. Kh3 {[%emt 0:00:00]} Rxg5 {[%emt 0:00:00]} 58. Kh4 {[%emt 0:00:00]} Rg1 {[%emt 0:00:00]} 59. Kxh5 {[%emt 0:00:00]} Rg3 {[%emt 0:00:00]} 60. Rb3 {[%emt 0:00:00]} Ke6 {[%emt 0:00:23]} 61. Kh4 {[%emt 0:00:00]} Rg8 {[%emt 0:00:00]} 62. Rb6+ {[%emt 0:00:00]} Ke7 {[%emt 0:00:00]} 63. Rh6 {[%emt 0:00:00]} Kd7 {[%emt 0:00:00]} 64. Rh5 {[%emt 0:00:00]} Ke6 {[%emt 0:00:00]} 65. Rg5 {[%emt 0:00:00]} Rf8 {[%emt 0:00:00]} 66. Kg3 {[%emt 0:00:00]} Rf4 {[%emt 0:00:00]} 67. Rg6+ {[%emt 0:00:00]} Ke7 {[%emt 0:00:00]} 68. Rh6 {[%emt 0:00:00]} Kd7 {[%emt 0:00:00]} 69. Kf2 {[%emt 0:00:00]} Ke7 {[%emt 0:00:00]} 70. Ke3 {[%emt 0:00:00]} Rf8 {[%emt 0:00:00]} 71. Ra6 {[%emt 0:00:00]} Kd7 {[%emt 0:00:00]} 72. Kd3 {[%emt 0:00:00]} Rxf3+ {[%emt 0:00:00]} 73. Kc4 {[%emt 0:00:00]} Rh3 {[%emt 0:00:00]} 74. Kd5 {[%emt 0:00:00]} Rh5 {[%emt 0:00:00]} 75. Rg6 {[%emt 0:00:00]} Ke7 {[%emt 0:00:00]} 76. Re6+ {[%emt 0:00:00]} Kd7 {[%emt 0:00:00]} 77. Ra6 {[%emt 0:00:00]} Ke7 {[%emt 0:00:00]} 78. Ra7+ {[%emt 0:00:00]} Ke8 {[%emt 0:00:00]} 79. Rb7 {[%emt 0:00:00]} Rg5 {[%emt 0:00:00]} 80. Rh7 {[%emt 0:00:00]} Rg6 {[%emt 0:00:00]} 81. Kxe5 {[%emt 0:00:00]} Ra6 {[%emt 0:00:00]} 82. Kf5 {[%emt 0:00:00]} Rb6 {[%emt 0:00:00]} 83. e5 {[%emt 0:00:00]} Ra6 {[%emt 0:00:00]} 84. Rb7 {[%emt 0:00:00]} Rc6 {[%emt 0:00:00]} 85. Ke4 {[%emt 0:00:00]} Ra6 {[%emt 0:00:00]} 86. Kd5 {[%emt 0:00:00]} Rh6 {[%emt 0:00:00]} 87. e6 {[%emt 0:00:00]} Rh1 {[%emt 0:00:00]} 88. Rb8+ {[%emt 0:00:00]} Ke7 {[%emt 0:00:00]} 89. Rb7+ {[%emt 0:00:00]} Ke8 {[%emt 0:00:00]} 90. Rb8+ {[%emt 0:00:00]} Ke7 {[%emt 0:00:00]} 91. Rb7+ {[%emt 0:00:00]} 1/2-1/2

[Event "Fagernes GM Open Autumn 2024"]
[Site "Fagernes"]
[Date "2024.10.09"]
[Round "5.26"]
[White "Advaitt Srikant Koduri"]
[Black "Juodziukynas, Aidas"]
[Result "1-0"]
[ECO "D02"]
[WhiteElo "2162"]
[BlackElo "1917"]
[Annotator "RC"]
[PlyCount "119"]
[EventDate "2024.10.03"]
[EventType "swiss"]
[EventCountry "NOR"]
[SourceTitle "playchess.com"]
[Source "ChessBase"]
[SourceQuality "1"]
[TimeControl "40/6000:2400+30"]

1. d4 {[%emt 0:04:04]} Nf6 {[%emt 0:00:00]} 2. Nf3 {[%emt 0:00:00]} d5 {[%emt 0:00:00]} 3. Bf4 {[%emt 0:00:00]} c5 {[%emt 0:00:00]} 4. c3 {[%emt 0:00:00]} Nc6 {[%emt 0:00:11]} 5. e3 {[%emt 0:00:00]} Bg4 {[%emt 0:00:23]} 6. Qb3 {[%emt 0:06:09]} Qb6 {[%emt 0:00:17]} 7. dxc5 {[%emt 0:05:03]} Qxb3 {[%emt 0:00:00]} 8. axb3 {[%emt 0:00:00]} Bxf3 {[%emt 0:00:03]} 9. gxf3 {[%emt 0:00:00]} e5 {[%emt 0:00:00]} 10. Bg3 {[%emt 0:00:00]} Bxc5 {[%emt 0:00:00]} 11. Bb5 {[%emt 0:00:47]} Bd6 {[%emt 0:00:38]} 12. Bxc6+ {[%emt 0:00:19]} bxc6 {[%emt 0:00:00]} 13. b4 {[%emt 0:00:00]} O-O {[%emt 0:00:54]} 14. Nd2 {[%emt 0:00:00]} Rfe8 {[%emt 0:05:14]} 15. Ra6 {[%emt 0:00:02]} Rec8 {[%emt 0:00:29]} 16. Ke2 {[%emt 0:00:12]} Bb8 {[%emt 0:02:22]} 17. Nb3 {[%emt 0:00:00]} Nd7 {[%emt 0:01:54]} 18. Rha1 {[%emt 0:00:34]} f6 {[%emt 0:00:00]} 19. e4 {[%emt 0:09:13]} Kf7 {[%emt 0:00:56]} 20. Na5 {[%emt 0:00:42]} Nb6 {[%emt 0:03:24]} 21. Nb7 {[%emt 0:01:22]} Nd7 {[%emt 0:02:18]} 22. R1a5 {[%emt 0:04:35]} Bc7 {[%emt 0:02:08]} 23. Rxc6 {[%emt 0:01:50]} dxe4 {[%emt 0:01:21]} 24. fxe4 {[%emt 0:02:17]} Ke7 {[%emt 0:00:00]} 25. Ra1 {[%emt 0:01:57]} Bb6 {[%emt 0:00:37]} 26. Rxc8 {[%emt 0:01:26]} Rxc8 {[%emt 0:00:00]} 27. f3 {[%emt 0:00:00]} Rc7 {[%emt 0:00:00]} 28. Na5 {[%emt 0:00:00]} Nf8 {[%emt 0:00:00]} 29. Bf2 {[%emt 0:03:12]} Ne6 {[%emt 0:00:00]} 30. Be3 {[%emt 0:03:53]} g5 {[%emt 0:00:19]} 31. Nb3 {[%emt 0:01:14]} h5 {[%emt 0:00:24]} 32. Nc5 {[%emt 0:02:02]} Nxc5 {[%emt 0:00:18]} 33. bxc5 {[%emt 0:00:00]} Bxc5 {[%emt 0:00:00]} 34. Bxc5+ {[%emt 0:00:00]} Rxc5 {[%emt 0:00:00]} 35. Rxa7+ {[%emt 0:00:00]} Ke6 {[%emt 0:00:00]} 36. Kd3 {[%emt 0:00:00]} Rc6 {[%emt 0:00:00]} 37. b4 {[%emt 0:00:00]} Rd6+ {[%emt 0:00:00]} 38. Kc2 {[%emt 0:00:00]} f5 {[%emt 0:00:00]} 39. Rh7 {[%emt 0:00:00]} fxe4 {[%emt 0:00:00]} 40. fxe4 {[%emt 0:00:00]} h4 {[%emt 0:00:00]} 41. b5 {[%emt 0:41:20]} Rd8 {[%emt 0:39:03]} 42. Rh6+ {[%emt 0:00:37]} Kf7 {[%emt 0:00:08]} 43. b6 {[%emt 0:00:25]} Kg7 {[%emt 0:00:23]} 44. Re6 {[%emt 0:01:11]} g4 {[%emt 0:00:51]} 45. Rxe5 {[%emt 0:00:24]} Kg6 {[%emt 0:00:23]} 46. Rd5 {[%emt 0:04:14]} Rxd5 {[%emt 0:00:46]} 47. exd5 {[%emt 0:00:02]} g3 {[%emt 0:00:11]} 48. hxg3 {[%emt 0:00:07]} h3 {[%emt 0:00:12]} 49. b7 {[%emt 0:00:14]} h2 {[%emt 0:00:08]} 50. b8=Q {[%emt 0:00:19]} h1=Q {[%emt 0:00:19]} 51. Qd6+ {[%emt 0:00:39]} Kg5 {[%emt 0:00:37]} 52. Qe5+ {[%emt 0:00:06]} Kg6 {[%emt 0:00:35]} 53. d6 {[%emt 0:06:12]} Qg2+ {[%emt 0:00:38]} 54. Kd3 {[%emt 0:00:22]} Qf3+ {[%emt 0:00:55]} 55. Kd4 {[%emt 0:00:39]} Qf2+ {[%emt 0:01:34]} 56. Qe3 {[%emt 0:01:05]} Qf6+ {[%emt 0:00:33]} 57. Kd5 {[%emt 0:00:48]} Qf5+ {[%emt 0:00:05]} 58. Qe5 {[%emt 0:00:27]} Qd3+ {[%emt 0:00:13]} 59. Ke6 {[%emt 0:00:16]} Qc4+ {[%emt 0:00:57]} 60. Ke7 {[%emt 0:00:10]} 1-0

[Event "Fagernes GM Open Autumn 2024"]
[Site "Fagernes"]
[Date "2024.10.09"]
[Round "5.27"]
[White "Lien, Sebastian"]
[Black "Kanyamarala, Trisha"]
[Result "1/2-1/2"]
[ECO "D38"]
[WhiteElo "1911"]
[BlackElo "2160"]
[Annotator "RC"]
[PlyCount "90"]
[EventDate "2024.10.03"]
[EventType "swiss"]
[EventCountry "NOR"]
[SourceTitle "playchess.com"]
[Source "ChessBase"]
[SourceQuality "1"]
[TimeControl "40/6000:2400+30"]

1. d4 {[%emt 0:00:00]} Nf6 {[%emt 0:00:00]} 2. c4 {[%emt 0:00:06]} e6 {[%emt 0:00:00]} 3. Nf3 {[%emt 0:00:00]} d5 {[%emt 0:00:00]} 4. Nc3 {[%emt 0:00:00]} Bb4 {[%emt 0:00:00]} 5. cxd5 {[%emt 0:00:00]} exd5 {[%emt 0:00:00]} 6. Bg5 {[%emt 0:01:26]} h6 {[%emt 0:00:00]} 7. Bh4 {[%emt 0:00:00]} O-O {[%emt 0:00:00]} 8. e3 {[%emt 0:00:00]} Bf5 {[%emt 0:00:00]} 9. Be2 {[%emt 0:00:15]} Nbd7 {[%emt 0:00:00]} 10. Qb3 {[%emt 0:00:42]} Qe7 {[%emt 0:00:00]} 11. a3 {[%emt 0:00:00]} Bxc3+ {[%emt 0:03:30]} 12. Qxc3 {[%emt 0:00:00]} Rac8 {[%emt 0:03:27]} 13. O-O {[%emt 0:07:34]} c5 {[%emt 0:02:28]} 14. dxc5 {[%emt 0:04:37]} Rxc5 {[%emt 0:04:11]} 15. Qb4 {[%emt 0:00:26]} b6 {[%emt 0:19:35]} 16. Nd4 {[%emt 0:08:21]} Bh7 {[%emt 0:01:28]} 17. Nc6 {[%emt 0:09:42]} Qe4 {[%emt 0:03:26]} 18. Qxe4 {[%emt 0:03:10]} Nxe4 {[%emt 0:03:38]} 19. Rfc1 {[%emt 0:00:19]} g5 {[%emt 0:06:53]} 20. Bg3 {[%emt 0:02:18]} Kg7 {[%emt 0:13:19]} 21. Nxa7 {[%emt 0:02:47]} Ra8 {[%emt 0:04:43]} 22. Rxc5 {[%emt 0:07:57]} Ndxc5 {[%emt 0:03:08]} 23. Nb5 {[%emt 0:02:24]} Nxg3 {[%emt 0:00:00]} 24. hxg3 {[%emt 0:00:00]} Na4 {[%emt 0:00:58]} 25. Rd1 {[%emt 0:10:08]} Nxb2 {[%emt 0:00:50]} 26. Rxd5 {[%emt 0:00:00]} Rc8 {[%emt 0:06:37]} 27. Rd6 {[%emt 0:07:10]} Rc1+ {[%emt 0:00:45]} 28. Kh2 {[%emt 0:00:00]} Na4 {[%emt 0:00:11]} 29. Rd4 {[%emt 0:05:33]} Nc5 {[%emt 0:00:22]} 30. Rd1 {[%emt 0:08:59]} Rc2 {[%emt 0:08:25]} 31. Re1 {[%emt 0:00:29]} Nd3 {[%emt 0:01:24]} 32. Bxd3 {[%emt 0:02:49]} Bxd3 {[%emt 0:00:00]} 33. Nd6 {[%emt 0:01:33]} Rxf2 {[%emt 0:03:05]} 34. e4 {[%emt 0:01:19]} Ra2 {[%emt 0:00:41]} 35. Nf5+ {[%emt 0:03:03]} Kg6 {[%emt 0:00:47]} 36. Ne7+ {[%emt 0:00:44]} Kg7 {[%emt 0:03:35]} 37. Nf5+ {[%emt 0:01:04]} Kh7 {[%emt 0:00:00]} 38. Nd6 {[%emt 0:00:38]} Kg6 {[%emt 0:00:23]} 39. Nc8 {[%emt 0:01:10]} b5 {[%emt 0:00:41]} 40. Ne7+ {[%emt 0:00:41]} Kg7 {[%emt 0:00:18]} 41. Nf5+ {[%emt 0:40:47]} Kg6 {[%emt 0:06:03]} 42. Ne7+ {[%emt 0:00:00]} Kh7 {[%emt 0:00:20]} 43. Re3 {[%emt 0:00:00]} Bf1 {[%emt 0:03:44]} 44. Kg1 {[%emt 0:00:00]} Bc4 {[%emt 0:07:16]} 45. Nf5 {[%emt 0:00:00]} Ra1+ {[%emt 0:04:14]} 1/2-1/2

[Event "Fagernes GM Open Autumn 2024"]
[Site "Fagernes"]
[Date "2024.10.09"]
[Round "5.28"]
[White "Bjorkan, Olav"]
[Black "Sorgjerd, Jan"]
[Result "1-0"]
[ECO "A65"]
[WhiteElo "2022"]
[BlackElo "1966"]
[Annotator "RC"]
[PlyCount "89"]
[EventDate "2024.10.03"]
[EventType "swiss"]
[EventCountry "NOR"]
[SourceTitle "playchess.com"]
[Source "ChessBase"]
[SourceQuality "1"]
[TimeControl "40/6000:2400+30"]

1. d4 {[%emt 0:00:00]} Nf6 {[%emt 0:00:00]} 2. c4 {[%emt 0:00:00]} e6 {[%emt 0:00:00]} 3. Nf3 {[%emt 0:00:00]} c5 {[%emt 0:00:00]} 4. d5 {[%emt 0:02:23]} exd5 {[%emt 0:00:00]} 5. cxd5 {[%emt 0:00:00]} d6 {[%emt 0:00:00]} 6. Nc3 {[%emt 0:00:00]} g6 {[%emt 0:00:00]} 7. e4 {[%emt 0:02:41]} Bg7 {[%emt 0:00:00]} 8. h3 {[%emt 0:01:23]} O-O {[%emt 0:00:00]} 9. Bd3 {[%emt 0:00:00]} a6 {[%emt 0:00:37]} 10. a4 {[%emt 0:00:18]} Nbd7 {[%emt 0:03:10]} 11. O-O {[%emt 0:00:00]} Re8 {[%emt 0:01:22]} 12. Bg5 {[%emt 0:04:02]} Qc7 {[%emt 0:01:10]} 13. Nd2 {[%emt 0:13:19]} Rb8 {[%emt 0:07:04]} 14. Rb1 {[%emt 0:10:06]} b5 {[%emt 0:14:18]} 15. axb5 {[%emt 0:07:25]} Ne5 {[%emt 0:00:59]} 16. Be2 {[%emt 0:00:40]} c4 {[%emt 0:00:21]} 17. bxa6 {[%emt 0:17:26]} Bxa6 {[%emt 0:00:58]} 18. Re1 {[%emt 0:07:25]} Nfd7 {[%emt 0:04:43]} 19. Be3 {[%emt 0:08:13]} Nc5 {[%emt 0:01:45]} 20. Bxc5 {[%emt 0:00:19]} Qxc5 {[%emt 0:00:00]} 21. Qa4 {[%emt 0:02:12]} Ra8 {[%emt 0:01:49]} 22. Rec1 {[%emt 0:01:34]} Reb8 {[%emt 0:00:33]} 23. b4 {[%emt 0:03:41]} Qd4 {[%emt 0:06:10]} 24. Nf3 {[%emt 0:00:37]} Nxf3+ {[%emt 0:03:20]} 25. Bxf3 {[%emt 0:00:00]} Qd2 {[%emt 0:00:00]} 26. Qc2 {[%emt 0:00:00]} Qf4 {[%emt 0:01:25]} 27. b5 {[%emt 0:06:54]} Bc8 {[%emt 0:00:06]} 28. Ne2 {[%emt 0:00:00]} Qf6 {[%emt 0:00:00]} 29. Qxc4 {[%emt 0:01:15]} Bxh3 {[%emt 0:00:31]} 30. b6 {[%emt 0:00:00]} Bc8 {[%emt 0:00:40]} 31. b7 {[%emt 0:03:01]} Bxb7 {[%emt 0:04:18]} 32. Qc7 {[%emt 0:00:00]} Rc8 {[%emt 0:00:46]} 33. Qxb7 {[%emt 0:00:00]} Rxc1+ {[%emt 0:00:00]} 34. Rxc1 {[%emt 0:00:00]} Ra1 {[%emt 0:00:00]} 35. Qc8+ {[%emt 0:00:00]} Bf8 {[%emt 0:00:00]} 36. Rxa1 {[%emt 0:00:00]} Qxa1+ {[%emt 0:00:00]} 37. Qc1 {[%emt 0:00:00]} Qa7 {[%emt 0:00:00]} 38. g3 {[%emt 0:00:00]} h5 {[%emt 0:00:00]} 39. Kg2 {[%emt 0:00:00]} Kh7 {[%emt 0:00:00]} 40. Qf4 {[%emt 0:00:00]} Qe7 {[%emt 0:00:00]} 41. Nd4 {[%emt 0:40:40]} Bh6 {[%emt 0:39:56]} 42. Nc6 {[%emt 0:00:44]} Bxf4 {[%emt 0:01:31]} 43. Nxe7 {[%emt 0:00:43]} Bh6 {[%emt 0:00:04]} 44. Nc8 {[%emt 0:00:25]} Bf8 {[%emt 0:00:02]} 45. e5 {[%emt 0:00:25]} 1-0

[Event "Fagernes GM Open Autumn 2024"]
[Site "Fagernes"]
[Date "2024.10.09"]
[Round "5.29"]
[White "Stromhaug, Kristoffer Wang"]
[Black "Simonsen, David Mindestrommen"]
[Result "1-0"]
[ECO "B90"]
[WhiteElo "1960"]
[BlackElo "1930"]
[Annotator "RC"]
[PlyCount "57"]
[EventDate "2024.10.03"]
[EventType "swiss"]
[EventCountry "NOR"]
[SourceTitle "playchess.com"]
[Source "ChessBase"]
[SourceQuality "1"]
[TimeControl "40/6000:2400+30"]

1. e4 {[%emt 0:00:00]} c5 {[%emt 0:00:00]} 2. Nf3 {[%emt 0:00:00]} d6 {[%emt 0:00:00]} 3. d4 {[%emt 0:00:00]} cxd4 {[%emt 0:00:00]} 4. Nxd4 {[%emt 0:00:00]} Nf6 {[%emt 0:00:00]} 5. Nc3 {[%emt 0:00:00]} a6 {[%emt 0:00:00]} 6. h3 {[%emt 0:00:00]} e5 {[%emt 0:00:00]} 7. Nb3 {[%emt 0:00:00]} Be7 {[%emt 0:00:00]} 8. Be3 {[%emt 0:00:00]} h6 {[%emt 0:00:00]} 9. g4 {[%emt 0:00:00]} b5 {[%emt 0:00:00]} 10. Bg2 {[%emt 0:00:00]} Qc7 {[%emt 0:13:50]} 11. Qd2 {[%emt 0:03:42]} Nbd7 {[%emt 0:04:00]} 12. O-O {[%emt 0:11:19]} Nb6 {[%emt 0:08:05]} 13. Na5 {[%emt 0:11:55]} Be6 {[%emt 0:06:41]} 14. Nd5 {[%emt 0:11:25]} Bxd5 {[%emt 0:00:43]} 15. exd5 {[%emt 0:00:00]} Rc8 {[%emt 0:01:26]} 16. Bxb6 {[%emt 0:03:24]} Qxb6 {[%emt 0:01:11]} 17. Nc6 {[%emt 0:00:06]} Ng8 {[%emt 0:03:27]} 18. Kh1 {[%emt 0:04:52]} Bg5 {[%emt 0:05:41]} 19. Qb4 {[%emt 0:12:14]} Qc7 {[%emt 0:09:23]} 20. a4 {[%emt 0:03:51]} h5 {[%emt 0:01:18]} 21. axb5 {[%emt 0:01:26]} Qd7 {[%emt 0:00:09]} 22. b6 {[%emt 0:05:55]} hxg4 {[%emt 0:00:00]} 23. b7 {[%emt 0:00:03]} Rb8 {[%emt 0:00:00]} 24. Nxb8 {[%emt 0:00:28]} Qf5 {[%emt 0:00:00]} 25. Nc6 {[%emt 0:01:02]} Ne7 {[%emt 0:00:27]} 26. b8=Q+ {[%emt 0:01:47]} Nc8 {[%emt 0:00:00]} 27. Qe4 {[%emt 0:00:13]} Rxh3+ {[%emt 0:00:07]} 28. Kg1 {[%emt 0:00:47]} Bf4 {[%emt 0:00:10]} 29. Qxf5 {[%emt 0:00:29]} 1-0